bitfinex-derivatives/quotes_BTCF0:USTF0_20250417
["timestamp","ask_amount","ask_price","bid_price","bid_amount"]
[1744897333970,0.00017713,84522.0,84521.0,2.139835]
[1744897334179,0.00025713,84522.0,84521.0,2.139835]
[1744897334582,0.00125713,84522.0,84521.0,2.139835]
[1744897334884,0.00117713,84522.0,84521.0,2.139835]
[1744897335182,0.00125713,84522.0,84521.0,2.139835]
[1744897335381,0.00117713,84522.0,84521.0,2.139835]
[1744897335585,0.00125713,84522.0,84521.0,2.139835]
[1744897335777,0.00117713,84522.0,84521.0,2.139835]
[1744897335975,0.00217713,84522.0,84521.0,2.139835]
[1744897336171,0.12051073,84522.0,84521.0,2.139835]
[1744897336985,0.12051073,84522.0,84521.0,0.639835]
[1744897337387,0.00217713,84522.0,84521.0,0.639835]
[1744897337879,0.12051073,84522.0,84521.0,0.639835]
[1744897338083,0.00217713,84522.0,84521.0,0.639835]
[1744897338577,0.00225713,84522.0,84521.0,0.639835]
[1744897339987,0.00025713,84522.0,84521.0,0.643835]
[1744897340187,0.11859073,84522.0,84521.0,0.643835]
[1744897340490,0.00025713,84522.0,84521.0,0.643835]
[1744897340686,0.11859073,84522.0,84521.0,0.643835]
[1744897341393,0.21219073,84522.0,84521.0,0.643835]
[1744897342094,0.09385713,84522.0,84521.0,0.643835]
[1744897342493,0.11859073,84522.0,84521.0,0.643835]
[1744897342787,0.00025713,84522.0,84521.0,0.727475]
[1744897343094,0.00017713,84522.0,84521.0,0.727475]
[1744897343292,0.00025713,84522.0,84521.0,0.727475]
[1744897347289,0.00025713,84522.0,84521.0,0.857475]
[1744897348491,3e-08,84522.0,84521.0,0.857475]
[1744897348791,0.005,84540.0,84539.0,0.1183098]
[1744897348995,0.005,84540.0,84539.0,1.53680977]
[1744897349292,0.00508,84540.0,84539.0,1.53680977]
[1744897349490,0.005,84540.0,84539.0,1.53680977]
[1744897349796,0.00508,84540.0,84539.0,1.53680977]
[1744897350492,0.00508,84540.0,84539.0,1.35730977]
[1744897350794,0.1233884,84540.0,84539.0,0.7216]
[1744897350980,0.1233884,84540.0,84539.0,0.8052]
[1744897351380,0.3021884,84540.0,84539.0,0.8052]
[1744897351785,0.3021884,84540.0,84539.0,0.7216]
[1744897351987,0.3021884,84540.0,84539.0,0.8399098]
[1744897353799,0.1183182,84533.0,84532.0,0.02]
[1744897353999,0.1183196,84532.0,84531.0,0.36097749]
[1744897354188,0.2971196,84532.0,84531.0,0.44457749]
[1744897354395,0.3824196,84532.0,84531.0,0.44457749]
[1744897354590,0.3824196,84532.0,84531.0,0.36097749]
[1744897354791,0.3824196,84532.0,84524.0,0.1036]
[1744897354792,0.1183294,84525.0,84524.0,0.1036]
[1744897354992,0.1183336,84522.0,84521.0,0.3608]
[1744897355297,0.1283336,84522.0,84521.0,0.4444]
[1744897355498,0.3071336,84522.0,84521.0,0.4444]
[1744897356802,0.3071336,84522.0,84521.0,0.4464]
[1744897359103,0.3071336,84522.0,84521.0,0.4474]
[1744897360197,0.00982251,84522.0,84521.0,0.90753497]
[1744897360393,0.00982251,84522.0,84521.0,1.08973497]
[1744897360899,0.12823611,84522.0,84521.0,1.08973497]
[1744897363103,0.30443611,84522.0,84521.0,0.99763497]
[1744897363605,0.30443611,84522.0,84521.0,1.013187]
[1744897363997,0.30443611,84522.0,84521.0,0.67324203]
[1744897364198,0.30443611,84522.0,84521.0,0.776025]
[1744897365494,0.30443611,84522.0,84521.0,0.91403497]
[1744897365696,0.30443611,84522.0,84521.0,0.99811497]
[1744897365896,0.30443611,84522.0,84521.0,1.08641497]
[1744897367799,0.30443611,84522.0,84521.0,1.10197708]
[1744897369306,0.30443611,84522.0,84521.0,1.08641497]
[1744897370304,0.18610251,84522.0,84521.0,1.08641497]
[1744897370607,0.00990251,84522.0,84521.0,1.08641497]
[1744897370905,0.00982251,84522.0,84521.0,1.08641497]
[1744897371104,0.00990251,84522.0,84521.0,1.08641497]
[1744897371409,0.00982251,84522.0,84521.0,1.08641497]
[1744897371608,0.00990251,84522.0,84521.0,1.08641497]
[1744897371999,0.00982251,84522.0,84521.0,1.08641497]
[1744897372200,0.00990251,84522.0,84521.0,1.08641497]
[1744897372506,0.00990251,84522.0,84521.0,1.10200492]
[1744897372910,0.12823611,84522.0,84521.0,1.10200492]
[1744897374207,0.21413611,84522.0,84521.0,1.10200492]
[1744897374404,0.30073611,84522.0,84521.0,1.10200492]
[1744897376211,0.00990251,84522.0,84521.0,1.01792492]
[1744897376400,0.00982251,84522.0,84521.0,1.10200492]
[1744897376598,0.00990251,84522.0,84521.0,1.10200492]
[1744897377006,0.12823611,84522.0,84521.0,1.10200492]
[1744897377315,0.00990251,84522.0,84521.0,1.08641497]
[1744897377699,0.21513611,84522.0,84521.0,1.08641497]
[1744897378100,0.18240251,84522.0,84521.0,1.08641497]
[1744897379003,0.00990251,84522.0,84521.0,1.08641497]
[1744897379516,0.00982251,84522.0,84521.0,1.08641497]
[1744897379832,0.00990251,84522.0,84521.0,1.08641497]
[1744897380312,0.00990251,84522.0,84521.0,1.19641497]
[1744897380503,0.00982251,84522.0,84521.0,1.19641497]
[1744897380703,0.00990251,84522.0,84521.0,1.19641497]
[1744897381508,8e-05,84522.0,84521.0,1.19641497]
[1744897381711,9e-08,84530.0,84529.0,0.1183238]
[1744897381906,0.005,84540.0,84536.0,0.0591565]
[1744897382108,0.005,84540.0,84539.0,0.82090977]
[1744897382305,0.005,84540.0,84539.0,1.11270977]
[1744897382709,0.00508,84540.0,84539.0,0.99270977]
[1744897383008,0.00508,84540.0,84539.0,1.00446293]
[1744897383310,0.00508,84540.0,84539.0,1.02053555]
[1744897383508,0.005,84540.0,84539.0,1.02053555]
[1744897383713,0.005,84540.0,84539.0,1.00446293]
[1744897384011,0.005,84540.0,84539.0,0.99270977]
[1744897384210,0.00508,84540.0,84539.0,0.99270977]
[1744897384723,0.00508,84540.0,84539.0,0.99470977]
[1744897385408,0.005,84540.0,84539.0,0.99470977]
[1744897385609,0.00508,84540.0,84539.0,0.99570977]
[1744897386418,0.09718,84540.0,84539.0,0.99570977]
[1744897386616,0.00508,84540.0,84539.0,0.99570977]
[1744897387608,0.09698,84540.0,84539.0,0.99570977]
[1744897387805,0.18878,84540.0,84539.0,0.99570977]
[1744897388007,0.3070884,84540.0,84539.0,0.99570977]
[1744897388219,0.18878,84540.0,84539.0,0.99570977]
[1744897388408,0.09698,84540.0,84539.0,0.99570977]
[1744897388613,0.00508,84540.0,84539.0,0.99570977]
[1744897389222,0.2152884,84540.0,84539.0,0.99570977]
[1744897389616,0.09698,84540.0,84539.0,0.99570977]
[1744897389918,0.2152884,84540.0,84539.0,0.99570977]
[1744897390111,0.2152884,84540.0,84539.0,0.90840977]
[1744897390306,0.2998884,84540.0,84539.0,0.90840977]
[1744897390507,0.18158,84540.0,84539.0,0.99930977]
[1744897390705,0.00508,84540.0,84539.0,0.99930977]
[1744897391414,0.005,84540.0,84539.0,0.99930977]
[1744897391816,0.00508,84540.0,84539.0,0.99930977]
[1744897392014,0.005,84540.0,84539.0,0.99930977]
[1744897392320,0.00508,84540.0,84539.0,0.99930977]
[1744897394522,0.00010801,84556.0,84555.0,0.1182875]
[1744897394718,0.00010801,84556.0,84555.0,1.26408747]
[1744897394923,0.0848,84561.0,84560.0,0.1182805]
[1744897395127,0.0848,84561.0,84560.0,0.46008047]
[1744897395416,0.0899,84566.0,84565.0,0.1182735]
[1744897395622,0.2081721,84566.0,84565.0,0.5992635]
[1744897396024,0.2081721,84566.0,84565.0,0.6837635]
[1744897396323,0.2081721,84566.0,84565.0,0.5992635]
[1744897396822,0.2995721,84566.0,84565.0,0.6911635]
[1744897397018,0.005,84566.0,84565.0,0.92149824]
[1744897397211,1e-07,84566.0,84565.0,1.14419824]
[1744897397412,1e-07,84566.0,84565.0,1.39419824]
[1744897397713,1e-07,84566.0,84565.0,1.14419824]
[1744897397916,1e-07,84566.0,84565.0,2.64419824]
[1744897398116,1e-07,84566.0,84565.0,2.65590367]
[1744897398620,0.0020001,84566.0,84565.0,2.65590367]
[1744897399215,1e-07,84566.0,84565.0,2.65990367]
[1744897399420,1e-07,84566.0,84565.0,2.66190367]
[1744897400513,1e-07,84566.0,84565.0,3.07950367]
[1744897401523,0.1495572,84590.0,84572.0,0.5913143]
[1744897401724,0.1495572,84590.0,84589.0,1.18163977]
[1744897401925,0.0863,84596.0,84591.0,0.1182371]
[1744897402123,0.0863,84596.0,84591.0,0.57003697]
[1744897402521,0.00010801,84608.0,84596.0,0.0591147]
[1744897402724,0.0918,84624.0,84623.0,0.1181924]
[1744897402920,0.0869,84626.0,84625.0,0.1181896]
[1744897403428,0.0869,84626.0,84625.0,0.2104896]
[1744897403429,0.1787,84626.0,84625.0,0.2104896]
[1744897404124,0.1495572,84627.0,84626.0,0.1181882]
[1744897404324,0.1495572,84627.0,84626.0,0.2104882]
[1744897404519,0.1495572,84627.0,84626.0,0.22245464]
[1744897404827,0.13986466,84635.0,84634.0,0.118177]
[1744897405016,0.13986466,84635.0,84634.0,1.46837687]
[1744897405326,0.00010801,84650.0,84643.0,0.1181645]
[1744897405529,0.0918,84660.0,84643.0,1.57072431]
[1744897405834,0.0883,84659.0,84643.0,1.57072431]
[1744897406213,0.0883,84659.0,84643.0,1.61912431]
[1744897406422,0.1181472,84656.0,84643.0,1.61912431]
[1744897406623,0.0883,84659.0,84643.0,1.61912431]
[1744897406831,1e-07,84644.0,84643.0,1.62512431]
[1744897407933,0.0883,84666.0,84665.0,0.1181338]
[1744897408120,0.20654041,84666.0,84665.0,1.0020538]
[1744897408428,0.20654041,84666.0,84665.0,0.9197338]
[1744897408726,0.1181575,84648.0,84647.0,0.3608]
[1744897409028,0.1381575,84648.0,84647.0,0.3608]
[1744897409219,0.3881575,84648.0,84647.0,0.3608]
[1744897409525,0.3881575,84648.0,84647.0,0.44312]
[1744897409526,0.1381575,84648.0,84647.0,0.44312]
[1744897409718,0.3881575,84648.0,84647.0,0.44312]
[1744897410024,0.3881575,84648.0,84647.0,0.3658]
[1744897410228,0.5719575,84648.0,84647.0,0.3658]
[1744897410721,0.4538,84648.0,84647.0,0.4839589]
[1744897411018,0.3119575,84648.0,84647.0,0.60414874]
[1744897411212,0.3120375,84648.0,84647.0,0.60414874]
[1744897411416,0.19388,84648.0,84647.0,0.60414874]
[1744897411823,0.1044,84648.0,84647.0,0.72414874]
[1744897412014,0.02008,84648.0,84647.0,1.36535871]
[1744897412222,0.02,84648.0,84647.0,1.44505871]
[1744897412416,0.02008,84648.0,84647.0,1.44505871]
[1744897413027,0.02008,84648.0,84647.0,1.44905871]
[1744897413229,0.02,84648.0,84647.0,1.32905871]
[1744897413424,0.02008,84648.0,84647.0,1.32905871]
[1744897414422,0.1181352,84664.0,84655.0,0.1181477]
[1744897414629,0.02017645,84656.0,84655.0,0.68145754]
[1744897415330,0.02017645,84656.0,84655.0,0.85515754]
[1744897415532,0.02017645,84656.0,84655.0,0.85815754]
[1744897415733,0.02025645,84656.0,84655.0,0.85815754]
[1744897415932,5e-08,84656.0,84655.0,1.18976751]
[1744897416123,0.02000005,84656.0,84655.0,1.18976751]
[1744897416435,0.02,84656.0,84655.0,1.18976751]
[1744897416620,0.02008,84656.0,84655.0,1.18976751]
[1744897416827,0.0918,84669.0,84668.0,0.1181296]
[1744897417027,0.0918,84669.0,84668.0,0.5612496]
[1744897417347,0.005,84670.0,84669.0,0.1181282]
[1744897417528,0.005,84670.0,84669.0,1.00322801]
[1744897418134,0.00508,84670.0,84669.0,1.00322801]
[1744897418431,0.005,84670.0,84669.0,1.00322801]
[1744897418634,0.005,84670.0,84669.0,0.4789282]
[1744897418829,0.1232068,84670.0,84669.0,0.5612482]
[1744897419025,0.1232068,84670.0,84669.0,0.4789282]
[1744897419231,0.1232068,84670.0,84669.0,0.5612082]
[1744897419637,0.09218,84670.0,84669.0,0.5701732]
[1744897419841,0.2103068,84670.0,84669.0,0.5701732]
[1744897420035,0.09218,84670.0,84669.0,0.58559146]
[1744897420235,0.2103068,84670.0,84669.0,0.58559146]
[1744897420948,0.0921,84670.0,84669.0,0.58559146]
[1744897421240,0.0921,84670.0,84669.0,0.7057813]
[1744897421439,0.005,84670.0,84669.0,0.7916813]
[1744897421633,0.005,84670.0,84669.0,1.09839127]
[1744897422239,0.00508,84670.0,84669.0,1.08297301]
[1744897422440,0.005,84670.0,84669.0,2.58297301]
[1744897422639,0.00508,84670.0,84669.0,2.58297301]
[1744897422845,0.00508,84670.0,84669.0,2.58997301]
[1744897423044,0.00508,84670.0,84669.0,2.36836304]
[1744897423231,0.00508,84670.0,84669.0,2.28726304]
[1744897423633,0.00508,84670.0,84669.0,0.87856304]
[1744897423943,0.00508,84670.0,84669.0,0.8939957]
[1744897424133,0.00508,84670.0,84669.0,0.8026957]
[1744897424330,0.00508,84670.0,84669.0,0.7167957]
[1744897424631,0.1232068,84670.0,84669.0,0.59660586]
[1744897424832,0.1232068,84670.0,84669.0,0.58764086]
[1744897425029,0.3232068,84670.0,84669.0,0.3718]
[1744897425237,0.3732068,84670.0,84669.0,0.3718]
[1744897425430,0.5523068,84670.0,84669.0,0.3718]
[1744897425946,0.1181394,84661.0,84660.0,0.02]
[1744897426143,0.1181617,84645.0,84632.0,0.0590894]
[1744897426333,0.1381617,84645.0,84635.0,0.02]
[1744897426534,0.7624617,84645.0,84635.0,0.02]
[1744897426846,0.1181701,84639.0,84634.0,0.02]
[1744897427036,0.7189701,84639.0,84636.0,0.00017725]
[1744897427231,0.5808,84639.0,84638.0,0.35625564]
[1744897427446,0.2123687,84640.0,84639.0,0.1181701]
[1744897428546,0.2123687,84640.0,84639.0,0.13377387]
[1744897429046,0.2123687,84640.0,84639.0,0.13677387]
[1744897429546,0.2123687,84640.0,84639.0,0.13577387]
[1744897429934,0.2123687,84640.0,84639.0,0.13677387]
[1744897430537,0.2123687,84640.0,84639.0,0.13577387]
[1744897430844,0.2123687,84640.0,84639.0,0.13677387]
[1744897431443,0.2123687,84640.0,84639.0,0.01860377]
[1744897431642,0.2123687,84640.0,84639.0,0.01960377]
[1744897431851,0.1181729,84637.0,84636.0,0.00017725]
[1744897432049,0.1182022,84616.0,84610.0,0.0591049]
[1744897432232,0.1182022,84616.0,84607.0,0.29964243]
[1744897432233,0.1382022,84616.0,84607.0,0.29964243]
[1744897432432,0.1482022,84616.0,84611.0,0.1182092]
[1744897432637,0.6024022,84616.0,84610.0,0.059105]
[1744897432844,0.6024022,84616.0,84611.0,0.0591042]
[1744897433043,0.9632022,84616.0,84611.0,0.0591042]
[1744897433345,0.6024022,84616.0,84615.0,0.13128541]
[1744897434043,0.5924022,84616.0,84615.0,0.13128541]
[1744897434247,0.5924022,84616.0,84615.0,0.01308181]
[1744897434847,0.5924022,84616.0,84615.0,0.01708181]
[1744897435047,0.5924022,84616.0,84615.0,0.13528541]
[1744897435641,0.5924022,84616.0,84615.0,0.01708181]
[1744897436051,1.095,84616.0,84607.0,0.00017725]
[1744897436235,0.1182162,84606.0,84605.0,0.35743569]
[1744897436437,0.1382162,84606.0,84605.0,0.35743569]
[1744897436844,0.1182315,84595.0,84594.0,0.02]
[1744897437035,0.1182357,84593.0,84592.0,0.1182347]
[1744897437240,0.1182357,84593.0,84591.0,0.41841796]
[1744897437241,0.1182357,84592.0,84591.0,0.41841796]
[1744897437440,0.2249357,84592.0,84591.0,0.53665506]
[1744897439146,0.2249357,84592.0,84591.0,0.1212371]
[1744897439948,0.2249357,84592.0,84591.0,0.2097371]
[1744897440247,0.1067,84592.0,84591.0,0.1232371]
[1744897440447,0.02008,84592.0,84591.0,0.2117371]
[1744897441046,0.02,84592.0,84591.0,0.2117371]
[1744897441648,0.1382357,84592.0,84591.0,0.2117371]
[1744897441843,0.1383157,84592.0,84591.0,0.2117371]
[1744897445556,8e-05,84592.0,84591.0,0.55253691]
[1744897445747,0.00017725,84601.0,84600.0,0.1182245]
[1744897445953,0.00017725,84601.0,84600.0,0.54354431]
[1744897446149,0.00017725,84601.0,84600.0,0.82014431]
[1744897446545,0.1819,84616.0,84600.0,0.82014431]
[1744897446546,0.3608,84624.0,84623.0,0.1181924]
[1744897446764,0.2092847,84629.0,84628.0,0.1181854]
[1744897446946,0.0911,84629.0,84628.0,0.1181854]
[1744897447147,0.0908,84633.0,84632.0,0.1181798]
[1744897447454,0.3608,84634.0,84633.0,0.1181784]
[1744897447753,0.478977,84634.0,84633.0,0.1181784]
[1744897448160,0.478977,84634.0,84633.0,0.2092784]
[1744897448463,0.656757,84634.0,84633.0,0.2092784]
[1744897448654,0.656677,84634.0,84633.0,0.2092784]
[1744897448954,8e-05,84634.0,84633.0,0.99539821]
[1744897449141,8e-05,84634.0,84633.0,1.08489821]
[1744897449547,8e-05,84634.0,84633.0,1.08589821]
[1744897449750,0.118177,84634.0,84633.0,0.8031869]
[1744897449946,0.118257,84634.0,84633.0,0.3242085]
[1744897450161,0.118177,84634.0,84633.0,0.17662]
[1744897450355,0.118257,84634.0,84633.0,0.2947984]
[1744897450662,0.118257,84634.0,84633.0,0.2957984]
[1744897451961,0.118257,84634.0,84633.0,0.2947984]
[1744897457366,8e-05,84634.0,84633.0,0.2947984]
[1744897457562,0.118257,84634.0,84633.0,0.2947984]
[1744897458060,0.118177,84634.0,84633.0,0.2947984]
[1744897458366,0.005,84644.0,84640.0,0.1181687]
[1744897458559,0.00010801,84643.0,84641.0,0.0590829]
[1744897458751,0.00010801,84643.0,84642.0,0.3857659]
[1744897458952,0.005,84644.0,84643.0,0.1181645]
[1744897459157,0.005,84644.0,84643.0,0.45996431]
[1744897459459,0.005,84644.0,84643.0,0.63306431]
[1744897459668,0.00508,84644.0,84643.0,0.63306431]
[1744897460057,0.00508,84644.0,84643.0,1.12386431]
[1744897460262,0.00017725,84652.0,84651.0,0.1181533]
[1744897460463,0.00017725,84652.0,84651.0,0.90367311]
[1744897460760,0.00025725,84652.0,84651.0,0.90367311]
[1744897460959,0.00017725,84652.0,84651.0,0.90367311]
[1744897461162,0.00025725,84652.0,84651.0,1.08377311]
[1744897461757,0.00425725,84652.0,84651.0,1.08377311]
[1744897462161,0.00625725,84652.0,84651.0,1.08377311]
[1744897462462,0.00625725,84652.0,84651.0,1.09536784]
[1744897462669,0.08898526,84661.0,84660.0,0.1181407]
[1744897462853,0.08898526,84661.0,84660.0,0.82074051]
[1744897463058,0.08906526,84661.0,84660.0,0.82074051]
[1744897463655,0.08906526,84661.0,84660.0,0.99654051]
[1744897464056,8e-05,84661.0,84660.0,0.99654051]
[1744897464468,8e-05,84661.0,84660.0,1.00054051]
[1744897465269,0.1182194,84661.0,84660.0,0.63974051]
[1744897465569,0.1182194,84661.0,84660.0,0.64274051]
[1744897466070,0.1182194,84661.0,84660.0,0.72566051]
[1744897467378,8e-05,84661.0,84660.0,0.72166051]
[1744897467667,8e-05,84661.0,84660.0,0.63874051]
[1744897467969,8e-05,84661.0,84660.0,0.72266051]
[1744897468459,8e-05,84661.0,84660.0,0.71866051]
[1744897468659,0.1182194,84661.0,84660.0,0.72366051]
[1744897468866,0.6583194,84661.0,84660.0,0.08792]
[1744897469161,0.6583194,84661.0,84660.0,0.08892]
[1744897469567,0.6583194,84661.0,84660.0,0.006]
[1744897470066,0.1181631,84644.0,84633.0,0.08292]
[1744897470266,0.8497631,84644.0,84634.0,0.02]
[1744897470668,1.0350631,84644.0,84637.0,0.118172]
[1744897470863,1.0350631,84644.0,84638.0,0.1181707]
[1744897471269,1.0360631,84644.0,84639.0,0.0590843]
[1744897471467,0.6752631,84644.0,84639.0,0.0590843]
[1744897471667,0.6752631,84644.0,84641.0,0.1181665]
[1744897472373,0.6752631,84644.0,84638.0,0.1181705]
[1744897472570,0.1181756,84635.0,84634.0,0.02]
[1744897472757,0.1181854,84629.0,84628.0,0.1181794]
[1744897472962,0.1181854,84629.0,84628.0,0.2010994]
[1744897473166,0.3038854,84629.0,84628.0,0.42270937]
[1744897473659,0.1181868,84627.0,84626.0,0.2121869]
[1744897473860,0.1181952,84621.0,84620.0,0.00917308]
[1744897474069,0.1181952,84621.0,84620.0,0.11837385]
[1744897475173,0.3038892,84626.0,84625.0,0.1181896]
[1744897476879,0.3038892,84626.0,84625.0,0.1241896]
[1744897479570,0.6646892,84626.0,84625.0,0.006]
[1744897479873,0.6646892,84626.0,84617.0,0.0791]
[1744897479874,0.1181994,84618.0,84617.0,0.02]
[1744897480080,0.1182022,84616.0,84614.0,0.1182043]
[1744897480267,0.1282022,84616.0,84609.0,0.0944]
[1744897480469,0.1282022,84616.0,84607.0,0.02]
[1744897480670,0.3076022,84616.0,84611.0,0.1182088]
[1744897480974,0.3076022,84616.0,84607.0,0.07928445]
[1744897481169,0.3076022,84616.0,84610.0,0.1182105]
[1744897481365,0.1182134,84608.0,84607.0,0.02017725]
[1744897481576,0.4790134,84608.0,84607.0,0.00017725]
[1744897482174,0.4790134,84608.0,84607.0,0.11839205]
[1744897482381,0.4790134,84608.0,84607.0,0.00017725]
[1744897483073,0.4830134,84608.0,84607.0,0.00017725]
[1744897483580,0.4790134,84608.0,84607.0,0.00017725]
[1744897483769,0.4830134,84608.0,84607.0,0.00017725]
[1744897483965,0.1182245,84600.0,84599.0,0.02]
[1744897484167,0.1182245,84600.0,84595.0,0.0891]
[1744897484168,0.1182301,84596.0,84595.0,0.0891]
[1744897484366,0.4790301,84596.0,84595.0,0.0891]
[1744897485578,0.8398301,84596.0,84595.0,0.0891]
[1744897485768,1.0236301,84596.0,84595.0,0.0891]
[1744897486075,0.1182357,84592.0,84591.0,0.09158]
[1744897486576,0.3020357,84592.0,84591.0,0.31318997]
[1744897486775,0.3020357,84592.0,84591.0,0.40028997]
[1744897487882,0.3020357,84592.0,84591.0,0.49348997]
[1744897488584,0.3020357,84592.0,84591.0,0.49548997]
[1744897488882,0.3020357,84592.0,84591.0,0.40228997]
[1744897489394,0.3020357,84592.0,84591.0,0.09358]
[1744897489887,0.3020357,84592.0,84591.0,0.00208]
[1744897490082,0.1182469,84584.0,84580.0,0.0907]
[1744897490280,0.1182511,84581.0,84580.0,0.09154299]
[1744897490586,0.1182511,84581.0,84580.0,0.09078]
[1744897490783,0.3078511,84581.0,84580.0,0.09078]
[1744897490985,0.3078511,84581.0,84580.0,0.0907]
[1744897491183,0.3078511,84581.0,84580.0,0.09078]
[1744897491382,0.3078511,84581.0,84580.0,0.0907]
[1744897491580,0.1182553,84578.0,84577.0,0.0897]
[1744897492183,0.3078553,84578.0,84577.0,0.0897]
[1744897492378,0.3078553,84578.0,84577.0,0.1764]
[1744897493081,0.3078553,84578.0,84577.0,0.2946567]
[1744897493283,0.3088553,84578.0,84577.0,0.3006567]
[1744897493587,0.3088553,84578.0,84577.0,0.3056567]
[1744897496580,0.6696553,84578.0,84577.0,0.3056567]
[1744897496888,0.1192553,84578.0,84577.0,0.73935651]
[1744897497687,0.001,84578.0,84577.0,0.73935651]
[1744897497890,0.0591192,84591.0,84578.0,0.0591275]
[1744897498075,0.059117,84594.0,84588.0,0.46004111]
[1744897498272,8e-05,84591.0,84588.0,0.46004111]
[1744897498476,0.1182389,84590.0,84588.0,0.64104111]
[1744897499176,0.1182389,84590.0,84588.0,0.64404111]
[1744897499584,0.11841715,84589.0,84588.0,0.64404111]
[1744897499990,0.11841715,84589.0,84588.0,0.64704111]
[1744897500684,0.00017725,84589.0,84588.0,0.64704111]
[1744897500887,0.3608,84609.0,84589.0,0.0591199]
[1744897501185,0.1182277,84604.0,84603.0,0.22160997]
[1744897501374,0.1282277,84604.0,84603.0,0.1851]
[1744897501578,0.3083277,84604.0,84603.0,0.0901]
[1744897502387,0.1202277,84604.0,84603.0,0.42993027]
[1744897502583,0.1203077,84604.0,84603.0,0.2083203]
[1744897502780,0.3037077,84604.0,84603.0,0.3908203]
[1744897503285,0.3037077,84604.0,84603.0,0.1826]
[1744897503489,0.1182217,84602.0,84601.0,0.08232]
[1744897503990,0.3016217,84602.0,84601.0,0.08232]
[1744897504193,0.1182301,84596.0,84595.0,0.00017725]
[1744897504784,0.3016301,84596.0,84595.0,0.00017725]
[1744897504990,0.2064301,84596.0,84595.0,0.11840875]
[1744897505184,0.1182301,84596.0,84595.0,0.34001872]
[1744897505691,0.1183101,84596.0,84595.0,0.42721872]
[1744897505879,0.1183101,84596.0,84595.0,0.51351872]
[1744897506885,0.1203101,84596.0,84595.0,0.51351872]
[1744897507792,0.2086101,84596.0,84595.0,0.51351872]
[1744897508489,0.2995101,84596.0,84595.0,0.51351872]
[1744897508688,0.2096101,84596.0,84595.0,0.51351872]
[1744897509080,0.2066101,84596.0,84595.0,0.51351872]
[1744897509286,0.2096101,84596.0,84595.0,0.51351872]
[1744897509989,0.2950101,84596.0,84595.0,0.51351872]
[1744897510293,0.2930101,84596.0,84595.0,0.51351872]
[1744897510494,0.1203101,84596.0,84595.0,1.07682856]
[1744897510793,0.1203101,84596.0,84595.0,0.17367725]
[1744897510991,0.1203101,84596.0,84595.0,0.08647725]
[1744897511190,0.3094101,84596.0,84595.0,0.00017725]
[1744897511395,0.0591157,84595.0,84581.0,8e-05]
[1744897511580,0.4790441,84586.0,84582.0,0.02046255]
[1744897511782,0.4890441,84586.0,84585.0,0.1183535]
[1744897511989,0.5777441,84586.0,84585.0,0.3018455]
[1744897512192,0.1182525,84580.0,84579.0,0.1773792]
[1744897512394,0.1182525,84580.0,84579.0,0.0902]
[1744897512595,0.1182581,84576.0,84575.0,0.290179]
[1744897512789,0.4790581,84576.0,84575.0,0.17192]
[1744897513088,0.5839581,84576.0,84575.0,0.17192]
[1744897513283,0.1182623,84573.0,84572.0,0.2384842]
[1744897513686,0.1182623,84573.0,84572.0,0.2385642]
[1744897513687,0.1282623,84573.0,84572.0,0.2385642]
[1744897513880,0.3118623,84573.0,84572.0,0.2384842]
[1744897514080,0.3118623,84573.0,84572.0,0.2385642]
[1744897514291,0.3118623,84573.0,84572.0,0.3568279]
[1744897514494,0.3118623,84573.0,84572.0,0.4470279]
[1744897514910,0.2169623,84573.0,84572.0,0.66863787]
[1744897515084,0.2069623,84573.0,84572.0,0.76133787]
[1744897515388,0.1182623,84573.0,84572.0,0.76133787]
[1744897515787,0.0591304,84575.0,84574.0,0.1182609]
[1744897515981,0.0591304,84575.0,84574.0,0.33987087]
[1744897516180,0.1522304,84575.0,84574.0,0.33987087]
[1744897516385,0.2472304,84575.0,84574.0,0.33987087]
[1744897516589,0.2472304,84575.0,84574.0,0.43117087]
[1744897516785,0.2492304,84575.0,84574.0,0.43117087]
[1744897517090,0.2492304,84575.0,84574.0,0.2095609]
[1744897517789,0.2492304,84575.0,84574.0,0.2096409]
[1744897518389,0.2492304,84575.0,84574.0,0.09138]
[1744897518591,0.1182609,84574.0,84573.0,0.0937]
[1744897518987,0.1182637,84572.0,84571.0,0.00017725]
[1744897519988,0.1412637,84572.0,84571.0,0.00017725]
[1744897520191,0.1412637,84572.0,84571.0,0.00025725]
[1744897520891,0.5526637,84572.0,84571.0,0.00017725]
[1744897521192,0.5526637,84572.0,84561.0,0.08232]
[1744897521193,0.1182749,84564.0,84561.0,0.08232]
[1744897521393,0.4790749,84564.0,84563.0,0.00508494]
[1744897521698,0.4990749,84564.0,84563.0,0.00508494]
[1744897521993,0.1182931,84551.0,84550.0,0.2384842]
[1744897522193,0.5290931,84551.0,84550.0,0.2384842]
[1744897523000,0.5290931,84551.0,84550.0,0.57846867]
[1744897523198,0.1382931,84551.0,84550.0,0.57846867]
[1744897523397,0.0591457,84553.0,84550.0,0.57846867]
[1744897523398,0.1796,84556.0,84554.0,0.1182875]
[1744897523585,0.0591441,84555.0,84554.0,0.1182875]
[1744897523993,0.0591441,84555.0,84554.0,0.46008731]
[1744897524593,0.0591266,84580.0,84558.0,0.1182833]
[1744897524798,0.1182815,84560.0,84558.0,0.46008311]
[1744897525195,0.1182807,84560.0,84558.0,0.46008311]
[1744897525496,0.11845926,84559.0,84558.0,0.46008311]
[1744897526084,0.00017736,84559.0,84558.0,0.46008311]
[1744897526288,0.20725456,84568.0,84567.0,0.1182707]
[1744897526501,0.20725456,84568.0,84567.0,0.46007051]
[1744897526887,0.08898526,84568.0,84567.0,0.46007051]
[1744897527691,0.4114,84605.0,84580.0,0.22160997]
[1744897527892,1e-08,84587.0,84586.0,0.82084391]
[1744897528298,8.001e-05,84587.0,84586.0,0.82084391]
[1744897528600,1e-08,84587.0,84586.0,0.90280391]
[1744897528802,0.00400001,84587.0,84586.0,0.90280391]
[1744897529192,0.00400001,84587.0,84586.0,0.82084391]
[1744897529392,0.12232271,84587.0,84586.0,0.54208391]
[1744897529698,0.12232271,84587.0,84586.0,0.54308391]
[1744897530300,0.12232271,84587.0,84586.0,0.46112391]
[1744897530500,0.11832271,84587.0,84586.0,0.54308391]
[1744897530691,0.1183227,84587.0,84586.0,0.54400391]
[1744897530893,0.1182427,84587.0,84586.0,0.54400391]
[1744897531302,0.1182427,84587.0,84586.0,0.46228391]
[1744897531496,0.1182427,84587.0,84586.0,0.54324391]
[1744897531698,0.1182427,84587.0,84586.0,0.54424391]
[1744897533201,0.1182427,84587.0,84586.0,0.54324391]
[1744897533704,0.1182427,84587.0,84586.0,0.46028391]
[1744897533902,0.1182427,84587.0,84586.0,0.54320391]
[1744897534601,0.1182427,84587.0,84586.0,0.54420391]